fUSD/lending_fUSD_20241230
["ID","MTS","AMOUNT","RATE_DAILY","PERIOD"]
[347142475,1735519850190,-151.0,0.00014342,2]
[347142476,1735519850199,-898.07,0.00014342,2]
[347142477,1735519850209,-632.42,0.00014342,2]
[347142478,1735519850218,-519.75,0.00014342,2]
[347142479,1735519850228,-644.79,0.00014342,2]
[347142480,1735519850238,-526.75,0.00014342,2]
[347142481,1735519850247,-1264.63,0.00014342,2]
[347142482,1735519850256,-756.29,0.00014342,2]
[347142483,1735519850265,-1116.01,0.00014342,2]
[347142484,1735519850274,-552.38,0.00014342,2]
[347142485,1735519850283,-1198.35,0.00014342,2]
[347142486,1735519850293,-500.0,0.00014342,2]
[347142487,1735519850302,-750.86,0.00014342,2]
[347142488,1735519850312,-743.69,0.00014342,2]
[347142489,1735519850321,-500.0,0.00014342,2]
[347142490,1735519850330,-500.0,0.00014342,2]
[347142491,1735519850339,-500.0,0.00014342,2]
[347142492,1735519850349,-626.25,0.00014342,2]
[347142493,1735519850358,-151.0,0.00014342,2]
[347142494,1735519850367,-500.0,0.00014351,2]
[347142495,1735519850376,-871.61,0.00014363,2]
[347142496,1735519850388,-1459.52,0.00014363,2]
[347142497,1735519850398,-150.0,0.00014364,2]
[347142498,1735519850408,-151.0,0.00014365,2]
[347142499,1735519850417,-308.573537,0.00014365,2]
[347142500,1735519850426,-308.573537,0.00014365,2]
[347142501,1735519850435,-251.077567,0.00014365,2]
[347142502,1735519850445,-251.077567,0.00014365,2]
[347142503,1735519850456,-150.0,0.00014366,2]
[347142504,1735519850466,-292.116845,0.0001437,2]
[347142505,1735519850476,-292.116845,0.0001437,2]
[347142506,1735519850485,-151.0,0.0001437,2]
[347142507,1735519850495,-151.0,0.0001437,2]
[347142508,1735519850505,-151.0,0.0001437,2]
[347142509,1735519850514,-150.0,0.00014378,2]
[347142510,1735519850524,-2186.96,0.00014384,2]
[347142511,1735519850534,-1459.52,0.00014391,2]
[347142512,1735519850543,-479.430445,0.00014391,2]
[347142513,1735519850552,-479.430445,0.00014391,2]
[347142514,1735519850561,-150.0,0.00014409,2]
[347142515,1735519850570,-1459.52,0.00014418,2]
[347142516,1735519850580,-500.0,0.00014436,2]
[347142517,1735519850589,-500.0,0.00014436,2]
[347142518,1735519850599,-500.0,0.00014436,2]
[347142519,1735519850608,-500.0,0.00014436,2]
[347142520,1735519850617,-500.0,0.00014436,2]
[347142521,1735519850626,-500.0,0.00014436,2]
[347142522,1735519850636,-500.0,0.00014436,2]
[347142523,1735519850645,-500.0,0.00014436,2]
[347142524,1735519850655,-500.0,0.00014436,2]
[347142525,1735519850666,-1203.14,0.00014436,2]
[347142526,1735519850676,-500.0,0.00014436,2]
[347142527,1735519850685,-500.0,0.00014436,2]
[347142528,1735519850695,-603.98,0.00014436,2]
[347142529,1735519850704,-578.81,0.00014436,2]
[347142530,1735519850714,-500.0,0.0001444,2]
[347142531,1735519850723,-150.0,0.0001444,2]
[347142532,1735519850732,-1459.52,0.00014446,2]
[347142533,1735519850742,-150.0,0.00014466,2]
[347142534,1735519850751,-1459.52,0.00014473,2]
[347142535,1735519850761,-10477.353153,0.00014477,2]
[347142536,1735519850770,-150.0,0.00014482,2]
[347142537,1735519850779,-150.0,0.00014498,2]
[347142538,1735519850788,-1459.52,0.000145,2]
[347142539,1735519850798,-150.0,0.000145,2]
[347142540,1735519850808,-150.0,0.00014504,2]
[347142541,1735519850817,-150.0,0.00014507,2]
[347142542,1735519850827,-1459.52,0.00014528,2]
[347142543,1735519850836,-500.0,0.00014529,2]
[347142544,1735519850845,-500.0,0.00014537,2]
[347142545,1735519850855,-500.0,0.00014537,2]
[347142546,1735519850864,-500.0,0.00014537,2]
[347142547,1735519850873,-500.0,0.00014537,2]
[347142548,1735519850883,-500.0,0.00014537,2]
[347142549,1735519850892,-500.0,0.00014537,2]
[347142550,1735519850900,-500.0,0.00014537,2]
[347142551,1735519850910,-500.0,0.00014537,2]
[347142552,1735519850919,-500.0,0.00014537,2]
[347142553,1735519850928,-500.0,0.00014537,2]
[347142554,1735519850937,-500.0,0.00014537,2]
[347142555,1735519850947,-500.91,0.00014537,2]
[347142556,1735519850957,-606.1,0.00014537,2]
[347142557,1735519850967,-500.0,0.00014537,2]
[347142558,1735519850976,-500.0,0.00014537,2]
[347142559,1735519850985,-500.0,0.00014537,2]
[347142560,1735519850995,-532.10435349,0.00014537,2]
[347142561,1735519851005,-500.0,0.00014537,2]
[347142562,1735519851015,-151.0,0.00014537,2]
[347142563,1735519851023,-302.07733694,0.00014537,2]
[347142564,1735519851032,-585.1,0.00014537,2]
[347142565,1735519851042,-500.0,0.00014537,2]
[347142566,1735519851051,-500.0,0.00014537,2]
[347142567,1735519851060,-500.0,0.00014537,2]
[347142568,1735519851071,-500.0,0.00014537,2]
[347142569,1735519851080,-500.0,0.00014537,2]
[347142570,1735519851089,-500.0,0.00014537,2]
[347142571,1735519851099,-604.46,0.00014537,2]
[347142572,1735519851108,-500.0,0.00014537,2]
[347142573,1735519851117,-500.0,0.00014537,2]
[347142574,1735519851127,-500.0,0.00014537,2]
[347142575,1735519851136,-500.0,0.00014537,2]
[347142576,1735519851145,-500.0,0.00014537,2]
[347142577,1735519851154,-677.25,0.00014537,2]
[347142578,1735519851163,-500.0,0.00014537,2]
[347142579,1735519851172,-500.0,0.00014537,2]
[347142580,1735519851181,-500.0,0.00014537,2]
[347142581,1735519851190,-500.0,0.00014537,2]
[347142582,1735519851199,-151.0,0.00014537,2]
[347142583,1735519851209,-500.0,0.00014537,2]
[347142584,1735519851218,-159.103446,0.00014537,2]
[347142585,1735519851229,-500.0,0.00014537,2]
[347142586,1735519851239,-500.0,0.00014537,2]
[347142587,1735519851248,-522.45,0.00014537,2]
[347142588,1735519851257,-726.55,0.00014537,2]
[347142589,1735519851267,-537.49,0.00014537,2]
[347142590,1735519851276,-500.0,0.00014537,2]
[347142591,1735519851285,-500.0,0.00014537,2]
[347142592,1735519851295,-500.0,0.00014537,2]
[347142593,1735519851304,-587.22,0.00014537,2]
[347142594,1735519851314,-509.5,0.00014537,2]
[347142595,1735519851323,-690.65,0.00014537,2]
[347142596,1735519851332,-491.052408,0.00014537,2]
[347142597,1735519851341,-500.0,0.00014537,2]
[347142598,1735519851350,-151.0,0.00014537,2]
[347142599,1735519851359,-534.3,0.00014537,2]
[347142600,1735519851368,-220.26313056,0.00014537,2]
[347142601,1735519851377,-668.95,0.00014537,2]
[347142602,1735519851390,-727.33,0.00014537,2]
[347142603,1735519851399,-500.0,0.00014537,2]
[347142604,1735519851408,-500.0,0.00014537,2]
[347142605,1735519851417,-522.05,0.00014537,2]
[347142606,1735519851426,-500.0,0.00014537,2]
[347142607,1735519851436,-500.0,0.00014537,2]
[347142608,1735519851445,-500.0,0.00014537,2]
[347142609,1735519851455,-500.0,0.00014537,2]
[347142610,1735519851464,-151.0,0.00014537,2]
[347142611,1735519851474,-539.87,0.00014537,2]
[347142612,1735519851483,-778.83,0.00014537,2]
[347142613,1735519851493,-500.0,0.00014537,2]
[347142614,1735519851502,-500.0,0.00014537,2]
[347142615,1735519851511,-500.0,0.00014537,2]
[347142616,1735519851521,-748.67,0.00014537,2]
[347142617,1735519851530,-916.92,0.00014537,2]
[347142618,1735519851540,-500.0,0.00014537,2]
[347142619,1735519851549,-500.0,0.00014537,2]
[347142620,1735519851558,-500.0,0.00014537,2]
[347142621,1735519851567,-500.0,0.00014537,2]
[347142622,1735519851576,-500.0,0.00014537,2]
[347142623,1735519851586,-500.0,0.00014537,2]
[347142624,1735519851595,-726.65,0.00014537,2]
[347142625,1735519851604,-500.0,0.00014537,2]
[347142626,1735519851613,-500.0,0.00014537,2]
[347142627,1735519851623,-500.0,0.00014537,2]
[347142628,1735519851633,-500.0,0.00014537,2]
[347142629,1735519851642,-770.76,0.00014537,2]
[347142630,1735519851651,-500.0,0.00014537,2]
[347142631,1735519851661,-500.0,0.00014537,2]
[347142632,1735519851671,-500.0,0.00014537,2]
[347142633,1735519851681,-500.0,0.00014537,2]
[347142634,1735519851690,-500.0,0.00014537,2]
[347142635,1735519851699,-509.28,0.00014537,2]
[347142636,1735519851711,-500.0,0.00014537,2]
[347142637,1735519851720,-629.54,0.00014537,2]
[347142638,1735519851731,-500.0,0.00014537,2]
[347142639,1735519851741,-500.0,0.00014537,2]
[347142640,1735519851751,-668.05,0.00014537,2]
[347142641,1735519851760,-500.0,0.00014537,2]
[347142642,1735519851769,-700.67,0.00014537,2]
[347142643,1735519851780,-500.0,0.00014537,2]
[347142644,1735519851789,-500.0,0.00014537,2]
[347142645,1735519851798,-500.0,0.00014537,2]
[347142646,1735519851808,-500.0,0.00014537,2]
[347142647,1735519851818,-586.4,0.00014537,2]
[347142648,1735519851827,-500.0,0.00014537,2]
[347142649,1735519851836,-683.48,0.00014537,2]
[347142650,1735519851846,-500.0,0.00014537,2]
[347142651,1735519851855,-500.0,0.00014537,2]
[347142652,1735519851865,-500.0,0.00014537,2]
[347142653,1735519851874,-500.0,0.00014537,2]
[347142654,1735519851883,-500.0,0.00014537,2]
[347142655,1735519851893,-703.12,0.00014537,2]
[347142656,1735519851902,-500.0,0.00014537,2]
[347142657,1735519851912,-647.58,0.00014537,2]
[347142658,1735519851921,-541.55,0.00014537,2]
[347142659,1735519851931,-714.96,0.00014537,2]
[347142660,1735519851941,-574.19,0.00014537,2]
[347142661,1735519851950,-574.68,0.00014537,2]
[347142662,1735519851960,-717.6,0.00014537,2]
[347142663,1735519851969,-500.0,0.00014537,2]
[347142664,1735519851978,-797.71,0.00014537,2]
[347142665,1735519851987,-500.0,0.00014537,2]
[347142666,1735519851996,-500.0,0.00014537,2]
[347142667,1735519852005,-785.06,0.00014537,2]
[347142668,1735519852015,-546.4,0.00014537,2]
[347142669,1735519852024,-642.7,0.00014537,2]
[347142670,1735519852033,-500.0,0.00014537,2]
[347142671,1735519852042,-500.0,0.00014537,2]
[347142672,1735519852051,-500.0,0.00014537,2]
[347142673,1735519852060,-500.0,0.00014537,2]
[347142674,1735519852071,-500.0,0.00014537,2]
[347142675,1735519852080,-500.0,0.00014537,2]
[347142676,1735519852090,-500.0,0.00014537,2]
[347142677,1735519852100,-500.0,0.00014537,2]
[347142678,1735519852110,-500.0,0.00014537,2]
[347142679,1735519852119,-3395.35,0.00014537,2]
[347142680,1735519852129,-547.65,0.00014537,2]
[347142681,1735519852138,-577.81,0.00014537,2]
[347142682,1735519852147,-586.4,0.00014537,2]
[347142683,1735519852157,-500.0,0.00014537,2]
[347142684,1735519852166,-500.0,0.00014537,2]
[347142685,1735519852175,-757.57,0.00014537,2]
[347142686,1735519852184,-1181.96,0.00014537,2]
[347142687,1735519852194,-500.0,0.00014537,2]
[347142688,1735519852204,-2234.06,0.00014537,2]
[347142689,1735519852213,-749.71,0.00014537,2]
[347142690,1735519852223,-500.0,0.00014537,2]
[347142691,1735519852232,-500.0,0.00014537,2]
[347142692,1735519852241,-697.05,0.00014537,2]
[347142693,1735519852250,-500.0,0.00014537,2]
[347142694,1735519852259,-577.16,0.00014537,2]
[347142695,1735519852268,-1894.3,0.00014537,2]
[347142696,1735519852277,-847.91,0.00014537,2]
[347142697,1735519852286,-500.0,0.00014537,2]
[347142698,1735519852295,-1563.62,0.00014537,2]
[347142699,1735519852304,-743.22,0.00014537,2]
[347142700,1735519852313,-500.0,0.00014537,2]
[347142701,1735519852322,-560.83,0.00014537,2]
[347142702,1735519852331,-500.0,0.00014537,2]
[347142703,1735519852340,-563.97,0.00014537,2]
[347142704,1735519852349,-632.12,0.00014537,2]
[347142705,1735519852359,-3849.59,0.00014537,2]
[347142706,1735519852368,-500.0,0.00014537,2]
[347142707,1735519852377,-815.27,0.00014537,2]
[347142708,1735519852394,-500.0,0.00014537,2]
[347142709,1735519852403,-500.0,0.00014537,2]
[347142710,1735519852413,-500.0,0.00014537,2]
[347142711,1735519852423,-570.42,0.00014537,2]
[347142712,1735519852432,-504.25,0.00014537,2]
[347142713,1735519852442,-151.0,0.00014537,2]
[347142714,1735519852451,-151.0,0.00014537,2]
[347142715,1735519852462,-1459.52,0.00014555,2]
[347142716,1735519852471,-771.25,0.00014567,2]
[347142717,1735519852481,-771.25,0.00014567,2]
[347142718,1735519852491,-201.0,0.0001458,2]
[347142719,1735519852499,-1459.52,0.00014583,2]
[347142720,1735519852508,-1376.40809641,0.000146,7]
[347142721,1735519852518,-1459.52,0.0001461,2]
[347142722,1735519852527,-151.0,0.00014611,2]
[347142723,1735519852536,-292.116845,0.00014611,2]
[347142724,1735519852545,-292.116845,0.00014611,2]
[347142725,1735519852555,-151.0,0.00014611,2]
[347142726,1735519852564,-479.430445,0.00014611,2]
[347142727,1735519852573,-479.430445,0.00014611,2]
[347142728,1735519852583,-151.0,0.00014616,2]
[347142729,1735519852593,-898.07,0.00014616,2]
[347142730,1735519852602,-632.42,0.00014616,2]
[347142731,1735519852611,-519.75,0.00014616,2]
[347142732,1735519852621,-644.79,0.00014616,2]
[347142733,1735519852630,-526.75,0.00014616,2]
[347142734,1735519852639,-1264.63,0.00014616,2]
[347142735,1735519852648,-756.29,0.00014616,2]
[347142736,1735519852658,-1116.01,0.00014616,2]
[347142737,1735519852667,-552.38,0.00014616,2]
[347142738,1735519852676,-1198.35,0.00014616,2]
[347142739,1735519852685,-500.0,0.00014616,2]
[347142740,1735519852694,-750.86,0.00014616,2]
[347142741,1735519852703,-743.69,0.00014616,2]
[347142742,1735519852713,-500.0,0.00014616,2]
[347142743,1735519852723,-500.0,0.00014616,2]
[347142744,1735519852732,-500.0,0.00014616,2]
[347142745,1735519852742,-626.25,0.00014616,2]
[347142746,1735519852751,-500.0,0.00014617,2]
[347142747,1735519852760,-978.28,0.0001463,2]
[347142748,1735519852770,-150.0,0.0001463,2]
[347142749,1735519852780,-151.0,0.00014637,2]
[347142750,1735519852789,-151.0,0.00014637,2]
[347142751,1735519852798,-151.0,0.00014637,2]
[347142752,1735519852807,-1459.52,0.00014637,2]
[347142753,1735519852816,-151.0,0.00014638,2]
[347142754,1735519852826,-151.0,0.00014638,2]
[347142755,1735519852835,-151.0,0.00014638,2]
[347142756,1735519852843,-151.0,0.00014638,2]
[347142757,1735519852852,-308.573537,0.00014638,2]
[347142758,1735519852861,-308.573537,0.00014638,2]
[347142759,1735519852871,-251.077567,0.00014638,2]
[347142760,1735519852881,-251.077567,0.00014638,2]
[347142761,1735519852890,-150.0,0.00014655,2]
[347142762,1735519852900,-1459.52,0.00014665,2]
[347142763,1735519852910,-173.63,0.00014681,2]
[347142764,1735519852919,-346.05796302,0.00014684,2]
[347142765,1735519852928,-1459.52,0.00014692,2]
[347142766,1735519852937,-500.0,0.00014706,2]
[347142767,1735519852946,-500.0,0.0001471,2]
[347142768,1735519852955,-500.0,0.0001471,2]
[347142769,1735519852965,-500.0,0.0001471,2]
[347142770,1735519852974,-500.0,0.0001471,2]
[347142771,1735519852983,-500.0,0.0001471,2]
[347142772,1735519852992,-500.0,0.0001471,2]
[347142773,1735519853001,-500.0,0.0001471,2]
[347142774,1735519853010,-500.0,0.0001471,2]
[347142775,1735519853018,-500.0,0.0001471,2]
[347142776,1735519853027,-1203.14,0.0001471,2]
[347142777,1735519853036,-500.0,0.0001471,2]
[347142778,1735519853046,-500.0,0.0001471,2]
[347142779,1735519853054,-603.98,0.0001471,2]
[347142780,1735519853063,-578.81,0.0001471,2]
[347142781,1735519853074,-156.687494,0.00014713,2]
[347142782,1735519853083,-151.0,0.00014713,2]
[347142783,1735519853269,-1459.52,0.0001472,2]
[347142784,1735519853279,-1459.52,0.00014747,2]
[347142785,1735519853289,-1459.52,0.00014774,2]
[347142786,1735519853299,-150.0,0.00014795,2]
[347142787,1735519853308,-500.0,0.00014795,2]
[347142788,1735519853318,-1459.52,0.00014802,2]
[347142789,1735519853327,-152.0,0.00014805,3]
[347142790,1735519853336,-305.97854982,0.00014811,2]
[347142791,1735519853346,-500.0,0.00014811,2]
[347142792,1735519853357,-500.0,0.00014811,2]
[347142793,1735519853367,-500.0,0.00014811,2]
[347142794,1735519853376,-500.0,0.00014811,2]
[347142795,1735519853390,-500.0,0.00014811,2]
[347142796,1735519853399,-500.0,0.00014811,2]
[347142797,1735519853409,-500.0,0.00014811,2]
[347142798,1735519853419,-500.0,0.00014811,2]
[347142799,1735519853429,-500.0,0.00014811,2]
[347142800,1735519853439,-500.0,0.00014811,2]
[347142801,1735519853448,-500.91,0.00014811,2]
[347142802,1735519853458,-606.1,0.00014811,2]
[347142803,1735519853467,-500.0,0.00014811,2]
[347142804,1735519853477,-500.0,0.00014811,2]
[347142805,1735519853486,-500.0,0.00014811,2]
[347142806,1735519853495,-500.0,0.00014811,2]
[347142807,1735519853504,-151.0,0.00014811,2]
[347142808,1735519853513,-585.1,0.00014811,2]
[347142809,1735519853522,-500.0,0.00014811,2]
[347142810,1735519853532,-500.0,0.00014811,2]
[347142811,1735519853541,-500.0,0.00014811,2]
[347142812,1735519853550,-500.0,0.00014811,2]
[347142813,1735519853560,-500.0,0.00014811,2]
[347142814,1735519853569,-500.0,0.00014811,2]
[347142815,1735519853578,-604.46,0.00014811,2]
[347142816,1735519853587,-575.93226776,0.00014811,2]
[347142817,1735519853597,-500.0,0.00014811,2]
[347142818,1735519853606,-613.39232355,0.00014811,2]
[347142819,1735519853615,-500.0,0.00014811,2]
[347142820,1735519853625,-500.0,0.00014811,2]
[347142821,1735519853634,-677.25,0.00014811,2]
[347142822,1735519853644,-500.0,0.00014811,2]
[347142823,1735519853653,-500.0,0.00014811,2]
[347142824,1735519853662,-500.0,0.00014811,2]
[347142825,1735519853671,-500.0,0.00014811,2]
[347142826,1735519853681,-151.0,0.00014811,2]
[347142827,1735519853690,-500.0,0.00014811,2]
[347142828,1735519853699,-500.0,0.00014811,2]
[347142829,1735519853709,-500.0,0.00014811,2]
[347142830,1735519853718,-522.45,0.00014811,2]
[347142831,1735519853728,-726.55,0.00014811,2]
[347142832,1735519853737,-537.49,0.00014811,2]
[347142833,1735519853746,-500.0,0.00014811,2]
[347142834,1735519853756,-500.0,0.00014811,2]
[347142835,1735519853765,-500.0,0.00014811,2]
[347142836,1735519853774,-587.22,0.00014811,2]
[347142837,1735519853783,-509.5,0.00014811,2]
[347142838,1735519853793,-690.65,0.00014811,2]
[347142839,1735519853802,-491.052408,0.00014811,2]
[347142840,1735519853811,-500.0,0.00014811,2]
[347142841,1735519853821,-534.3,0.00014811,2]
[347142842,1735519853830,-668.95,0.00014811,2]
[347142843,1735519853839,-727.33,0.00014811,2]
[347142844,1735519853848,-500.0,0.00014811,2]
[347142845,1735519853857,-500.0,0.00014811,2]
[347142846,1735519853866,-522.05,0.00014811,2]
[347142847,1735519853876,-500.0,0.00014811,2]
[347142848,1735519853885,-500.0,0.00014811,2]
[347142849,1735519853895,-500.0,0.00014811,2]
[347142850,1735519853905,-500.0,0.00014811,2]
[347142851,1735519853915,-539.87,0.00014811,2]
[347142852,1735519853924,-778.83,0.00014811,2]
[347142853,1735519853934,-314.47557687,0.00014811,2]
[347142854,1735519853945,-500.0,0.00014811,2]
[347142855,1735519853955,-500.0,0.00014811,2]
[347142856,1735519853964,-748.67,0.00014811,2]
[347142857,1735519853973,-916.92,0.00014811,2]
[347142858,1735519853983,-500.0,0.00014811,2]
[347142859,1735519853993,-308.573537,0.00014811,2]
[347142860,1735519854002,-500.0,0.00014811,2]
[347142861,1735519854012,-308.573537,0.00014811,2]
[347142862,1735519854021,-500.0,0.00014811,2]
[347142863,1735519854030,-500.0,0.00014811,2]
[347142864,1735519854039,-500.0,0.00014811,2]
[347142865,1735519854049,-500.0,0.00014811,2]
[347142866,1735519854058,-726.65,0.00014811,2]
[347142867,1735519854067,-500.0,0.00014811,2]
[347142868,1735519854077,-500.0,0.00014811,2]
[347142869,1735519854086,-214.757593,0.00014811,2]
[347142870,1735519854095,-500.0,0.00014811,2]
[347142871,1735519854104,-770.76,0.00014811,2]
[347142872,1735519854114,-500.0,0.00014811,2]
[347142873,1735519854123,-251.077567,0.00014811,2]
[347142874,1735519854132,-500.0,0.00014811,2]
[347142875,1735519854142,-251.077567,0.00014811,2]
[347142876,1735519854152,-500.0,0.00014811,2]
[347142877,1735519854161,-500.0,0.00014811,2]
[347142878,1735519854171,-500.0,0.00014811,2]
[347142879,1735519854180,-509.28,0.00014811,2]
[347142880,1735519854189,-500.0,0.00014811,2]
[347142881,1735519854198,-629.54,0.00014811,2]
[347142882,1735519854208,-500.0,0.00014811,2]
[347142883,1735519854218,-500.0,0.00014811,2]
[347142884,1735519854227,-668.05,0.00014811,2]
[347142885,1735519854237,-500.0,0.00014811,2]
[347142886,1735519854247,-700.67,0.00014811,2]
[347142887,1735519854256,-500.0,0.00014811,2]
[347142888,1735519854264,-500.0,0.00014811,2]
[347142889,1735519854274,-500.0,0.00014811,2]
[347142890,1735519854283,-500.0,0.00014811,2]
[347142891,1735519854292,-586.4,0.00014811,2]
[347142892,1735519854302,-500.0,0.00014811,2]
[347142893,1735519854311,-683.48,0.00014811,2]
[347142894,1735519854320,-500.0,0.00014811,2]
[347142895,1735519854330,-500.0,0.00014811,2]
[347142896,1735519854339,-500.0,0.00014811,2]
[347142897,1735519854349,-500.0,0.00014811,2]
[347142898,1735519854359,-500.0,0.00014811,2]
[347142899,1735519854369,-703.12,0.00014811,2]
[347142900,1735519854379,-500.0,0.00014811,2]
[347142901,1735519854392,-647.58,0.00014811,2]
[347142902,1735519854401,-541.55,0.00014811,2]
[347142903,1735519854411,-714.96,0.00014811,2]
[347142904,1735519854420,-574.19,0.00014811,2]
[347142905,1735519854430,-574.68,0.00014811,2]
[347142906,1735519854440,-717.6,0.00014811,2]
[347142907,1735519854450,-500.0,0.00014811,2]
[347142908,1735519854461,-797.71,0.00014811,2]
[347142909,1735519854470,-500.0,0.00014811,2]
[347142910,1735519854479,-500.0,0.00014811,2]
[347142911,1735519854488,-785.06,0.00014811,2]
[347142912,1735519854497,-216.58819814,0.00014811,2]
[347142913,1735519854778,500.0,0.00025012,120]
[347142914,1735519854791,-329.81180186,0.00014811,2]
[347142915,1735519854801,-642.7,0.00014811,2]
[347142916,1735519854811,-231.88124004,0.00014811,2]
[347142917,1735519854860,500.0,0.00025012,120]
[347142918,1735519854909,500.0,0.00025012,120]
[347142919,1735519854957,757.76,0.00025012,120]
[347142920,1735519855053,500.0,0.00025012,120]
[347142921,1735519855105,500.0,0.00025012,120]
[347142922,1735519855215,399.76120271,0.00025012,120]
[347142923,1735519855289,500.0,0.00025012,120]
[347142924,1735519855346,500.0,0.00025012,120]
[347142925,1735519855394,500.0,0.00025012,120]
[347142926,1735519855441,757.76,0.00025012,120]
[347142927,1735519855485,500.0,0.00025012,120]
[347142928,1735519855528,500.0,0.00025012,120]
[347142929,1735519855653,500.0,0.00025012,120]
[347142930,1735519855702,500.0,0.00025012,120]
[347142931,1735519855761,330.6550645,0.00025012,120]
[347142932,1735519855874,500.0,0.00025012,120]
[347142933,1735519855922,500.0,0.00025012,120]
[347142934,1735519855977,757.76,0.00025012,120]
[347142935,1735519856040,276.96,0.00025012,120]
[347142936,1735519856090,500.0,0.00025012,120]
[347142937,1735519856147,757.76,0.00025012,120]
[347142938,1735519856198,500.0,0.00025012,120]
[347142939,1735519856287,500.0,0.00025012,120]
[347142940,1735519856339,500.0,0.00025012,120]
[347142941,1735519856395,500.0,0.00025012,120]
[347142942,1735519856551,500.0,0.00025012,120]
[347142943,1735519856640,500.0,0.00025012,120]
[347142944,1735519856742,500.0,0.00025012,120]
[347142945,1735519856855,500.0,0.00025012,120]
[347142946,1735519856952,500.0,0.00025012,120]
[347142947,1735519857238,500.0,0.00025012,120]
[347142948,1735519857293,391.95,0.00025012,120]
[347142949,1735519857345,637.65,0.00025012,120]
[347142950,1735519857393,404.52,0.00025012,120]
[347142951,1735519857667,532.12,0.00025012,120]
[347142952,1735519857864,500.0,0.00025012,120]
[347142953,1735519858571,500.0,0.00025012,120]
[347142954,1735519858692,1693.4,0.00025012,120]
[347142955,1735519859081,500.0,0.00025012,120]
[347142956,1735519859317,500.0,0.00025012,120]
[347142957,1735519859584,500.0,0.00025012,120]
[347142958,1735519859996,500.0,0.00025012,120]
[347142959,1735519860932,500.0,0.00025012,120]
[347142960,1735519861071,500.0,0.00025012,120]
[347142961,1735519861422,500.0,0.00025012,120]
[347142962,1735519861488,500.0,0.00025012,120]
[347142963,1735519861604,216.54,0.00025012,120]
[347142964,1735519861664,537.33,0.00025012,120]
[347142965,1735519861970,537.33,0.00025012,120]
[347142966,1735519862229,886.47,0.00025012,120]
[347142967,1735519862351,537.33,0.00025012,120]
[347142968,1735519862660,886.47,0.00025012,120]
[347142969,1735519862709,537.33,0.00025012,120]
[347142970,1735519862761,500.0,0.00025012,120]
[347142971,1735519862942,886.47,0.00025012,120]
[347142972,1735519862988,537.33,0.00025012,120]
[347142973,1735519863229,886.47,0.00025012,120]
[347142974,1735519863287,537.33,0.00025012,120]